[Event "GCT Superbet Rapid Poland 2025"]
[Site "Warsaw"]
[Date "2025.04.28"]
[Round "9.5"]
[White "Aronian, Levon"]
[Black "Gavrilescu, David"]
[Result "1/2-1/2"]
[ECO "D45"]
[WhiteElo "2747"]
[BlackElo "2554"]
[Annotator "TA"]
[PlyCount "124"]
[EventDate "2025.??.??"]
[EventType "rapid"]
[TimeControl "1500+10"]

{[%evp 15,124,31,22,14,41,10,21,6,17,10,20,19,9,-41,-43,-35,5,-22,-22,-13,-21,-17,-16,-55,-8,-16,-14,-20,-14,-22,-16,-15,-12,-20,-20,-32,-18,-20,0,0,-14,-13,0,0,0,0,0,0,0,0,0,-33,0,-29,-11,-50,-8,0,-29,-18,-8,-68,-75,-85,0,0,35,0,40,12,44,0,8,6,6,7,30,16,21,0,0,0,0,0,0,0,0,0,0,0,0,0,0,0,0,0,0,0,0,0,0,0,0,0,0,0,0,0,0,0,0]} 1. c4 {[%emt 0:00:02]} e6 {[%emt 0:00:04]} 2. Nc3 {[%emt 0:00:12]} d5 {[%emt 0:00:05]} 3. d4 {[%emt 0:00:01]} c6 {[%emt 0:00:07]} 4. e3 {[%emt 0:00:02]} Nf6 {[%emt 0:00:04]} 5. Nf3 {[%emt 0:00:02]} a6 {[%emt 0:00:07]} 6. b3 {[%emt 0:00:20]} Bb4 {[%emt 0:00:33]} 7. Bd2 {[%emt 0:00:01]} Nbd7 {[%emt 0:00:06]} 8. Bd3 {[%emt 0:00:04]} O-O {[%emt 0:00:30]} 9. O-O {[%emt 0:00:20][%cal Oc3d5] D45: Semi-Slav: 5 e3.} Bd6 {[%emt 0:00:59]} 10. Rc1 {[%emt 0:00:03]} h6 {[%emt 0:02:01]} ({RR} 10... e5 11. cxd5 cxd5 12. dxe5 Nxe5 13. Nxe5 Bxe5 14. Ne2 Ng4 15. f4 Bb8 16. h3 Nf6 17. Bc3 Ba7 18. Bd4 Bxd4 19. Nxd4 Re8 20. Qf3 Qd6 21. Rc2 Bd7 22. Rfc1 Re7 23. g4 Rae8 24. Re2 b5 25. Kg2 {Xiu Deshun (2514)-Xiao,T (2518) Fuling CHN 2024 1-0 (99)}) 11. Ne2 {[%emt 0:04:56]} e5 $146 {[%emt 0:01:25]} (11... b6 12. Ng3 Bb7 13. Bc3 c5 14. cxd5 Nxd5 15. Ba1 Rc8 16. Bb1 Be7 17. Qd3 N5f6 {1-0 Aronian,L (2786)-Jakovenko,D (2736) Wch Blitz 4th 2009 (2)}) ({RR} 11... b6 12. Ng3 Bb7 13. Bc3 c5 14. cxd5 Nxd5 15. Ba1 Rc8 16. Bb1 Be7 17. Qd3 N5f6 18. e4 g6 19. d5 exd5 20. exd5 Nxd5 21. Nf5 Bf6 22. Nd6 Nb4 23. Qe3 Bxf3 24. Bxf6 Qxf6 25. Nxc8 Rxc8 26. Qxf3 {Aronian,L (2786)-Jakovenko,D (2736) Moscow 2009 1-0 (77)}) 12. dxe5 {[%emt 0:00:01]} Nxe5 {[%emt 0:00:03]} 13. Nxe5 {[%emt 0:00:04]} Bxe5 {[%emt 0:00:03]} 14. cxd5 {[%emt 0:00:02]} (14. Qc2 $11) 14... Qxd5 $15 {[%emt 0:05:36] [#]} 15. Nd4 {[%emt 0:00:11]} c5 {[%emt 0:01:34]} 16. Bc4 {[%emt 0:01:27]} Bxh2+ {[%emt 0:00:26] A sharp opening} 17. Kxh2 {[%emt 0:00:17]} Qd6+ {[%emt 0:00:13]} 18. Kg1 {[%emt 0:00:16]} cxd4 {[%emt 0:00:14]} 19. exd4 {[%emt 0:00:08]} (19. Qf3 {keeps more tension.} d3 20. Rc3 Bg4 21. Qxb7 Be2 22. Bxf7+ Kh8 23. Rc6) 19... Be6 {[%emt 0:01:57]} (19... Bg4 $15 {was preferable.} 20. Qc2 b5 (20... Qxd4 21. Bc3 $11)) 20. Qf3 {[%emt 0:00:57]} Bxc4 {[%emt 0:02:25]} 21. Rxc4 {[%emt 0:02:43]} Nd5 {[%emt 0:01:40] Prevents Bb4.} 22. Rc5 {[%emt 0:00:13]} Rad8 {[%emt 0:00:15]} 23. Re1 {[%emt 0:00:01]} b6 {[%emt 0:00:12]} 24. Rc4 {[%emt 0:01:10]} Rfe8 {[%emt 0:00:08]} 25. Rec1 {[%emt 0:00:07]} Qe7 {[%emt 0:02:14]} 26. a4 {[%emt 0:00:37]} Nf6 {[%emt 0:01:33]} 27. a5 {[%emt 0:01:10]} bxa5 {[%emt 0:01:07]} 28. Bxa5 {[%emt 0:00:03]} Rb8 {[%emt 0:00:27]} 29. Bc7 {[%emt 0:02:50]} Rb5 {[%emt 0:00:06]} 30. Be5 {[%emt 0:00:09]} Nd7 {[%emt 0:00:52]} 31. Bg3 {[%emt 0:00:02]} Qe6 {[%emt 0:00:24] Dodges d5} 32. Rc6 {[%emt 0:02:12]} Qxb3 {[%emt 0:00:05]} 33. Qg4 {[%emt 0:00:45]} f5 {[%emt 0:00:46]} 34. Qh4 {[%emt 0:05:28]} (34. Qg6 $5 Qf7 $8 35. Qxf7+ (35. Rxa6 Qxg6 36. Rxg6 Nf6 $11) 35... Kxf7 36. Rxa6 $14) 34... Qf7 {[%emt 0:00:37]} 35. Bf4 {[%emt 0:00:03]} Rb6 {[%emt 0:01:28]} 36. Rxb6 {[%emt 0:00:58]} Nxb6 {[%emt 0:00:01]} 37. Rc6 {[%emt 0:00:58]} Nd7 {[%emt 0:00:12] ...Nf6 is in the air} 38. Rxa6 {[%emt 0:00:33]} (38. f3 $11) 38... Nf6 {[%emt 0:00:12] ...Re1+ would now be deadly.} 39. f3 {[%emt 0:01:11][%cal Of4h6] [#]} Re6 {[%emt 0:00:29]} (39... Qb7 $1 $17 {[%cal Rb7a6]} 40. Rxf6 Qb1+ 41. Kh2 Re1 (41... gxf6 $2 {is the wrong capture.} 42. Qxf6 Qe1 43. Qg6+ Kf8 44. Bg3 $18) 42. Qxe1 (42. Rb6 $2 {is a self mate.} Rh1+ 43. Kg3 Qe1#) 42... Qxe1) 40. Ra5 {[%emt 0:00:25]} Nd7 {[%emt 0:00:19]} 41. d5 {[%emt 0:00:23]} Re8 {[%emt 0:00:03]} 42. Qf2 {[%emt 0:00:08]} Nf6 {[%emt 0:00:10]} 43. Qd2 {[%emt 0:00:15]} Nh5 {[%emt 0:00:16]} 44. d6 {[%emt 0:00:21]} Nxf4 {[%emt 0:00:08]} 45. Qxf4 $11 {[%emt 0:00:01][%mdl 4096] Endgame KQR-KQR} Rf8 {[%emt 0:00:11]} (45... Rd8 {simplifies} 46. Qe5 Qf6 47. Qxf6 gxf6 48. Rxf5 Rxd6 49. g4 Kg7) 46. Qd4 {[%emt 0:00:13]} Rd8 $1 {[%emt 0:00:09] The position is equal.} 47. Ra7 {[%emt 0:00:12]} Qf6 {[%emt 0:00:07]} 48. Qxf6 {[%emt 0:00:15]} gxf6 {[%emt 0:00:01] KR-KR} 49. d7 {[%emt 0:00:10]} Kf7 {[%emt 0:00:05]} 50. Kh2 {[%emt 0:00:07]} Ke7 {[%emt 0:00:10]} 51. Kh3 {[%emt 0:00:11]} Rxd7 {[%emt 0:00:01]} 52. Rxd7+ {[%emt 0:00:15]} Kxd7 {[%emt 0:00:01] K3P-KPP. Black is a pawn up.} 53. Kh4 {[%emt 0:00:01]} Ke6 {[%emt 0:00:04]} 54. Kh5 {[%emt 0:00:01]} Ke5 {[%emt 0:00:19]} 55. Kxh6 {[%emt 0:00:01] KPP-KPP} Kf4 {[%emt 0:00:03]} 56. Kg6 {[%emt 0:00:01]} (56. Kg7 $5 Kg5 $8 (56... Kg3 $2 57. Kxf6 Kf4 58. Kg6 $18) 57. Kf8 $11) 56... Ke5 {[%emt 0:00:29]} 57. Kg7 {[%emt 0:00:32] Strongly threatening g3.} (57. g3 $5 f4 $8 58. g4 $11) 57... f4 {[%emt 0:00:11]} 58. Kg6 {[%emt 0:00:01]} Ke6 {[%emt 0:00:09]} 59. Kh5 {[%emt 0:00:23]} Kd5 {[%emt 0:00:01]} 60. Kg6 {[%emt 0:00:11]} Ke6 {[%emt 0:00:01]} 61. Kh5 $1 {[%emt 0:00:17]} Kd5 {[%emt 0:00:01]} 62. Kg6 {[%emt 0:00:10]} Ke6 {[%emt 0:00:15] Weighted Error Value: White=0.11 (very precise) /Black=0.11 (very precise) Mistake: 	White=2 	Black=2 Inaccurate: 	White=9 	Black=6 OK: 	White=14 	Black=24 Best: 	White=2 	Black=2 Strong: 	White=1 	Black=1} 1/2-1/2

[Event "GCT Superbet Blitz Poland 2025"]
[Site "Warsaw"]
[Date "2025.04.28"]
[Round "1"]
[White "Aronian, Levon"]
[Black "Topalov, Veselin"]
[Result "1-0"]
[ECO "B51"]
[WhiteElo "2747"]
[BlackElo "2717"]
[Annotator "RC"]
[PlyCount "91"]
[EventDate "2025.??.??"]
[EventType "blitz"]
[TimeControl "300+2"]

1. e4 {[%emt 0:00:01] Ramirez Alvarez,Alejandro} c5 {[%emt 0:00:02]} 2. Nf3 {[%emt 0:00:03]} Nc6 {[%emt 0:00:01]} 3. Bb5 {[%emt 0:00:02]} d6 {[%emt 0:00:02]} 4. Bxc6+ {[%emt 0:00:05]} bxc6 {[%emt 0:00:01]} 5. e5 {[%emt 0:00:01]} dxe5 {[%emt 0:00:04]} ({RR} 5... d5 6. c4 Bg4 7. h3 Bh5 8. g4 Bg6 9. Nc3 e6 10. Qa4 Qd7 11. d4 Be4 12. Nxe4 dxe4 13. Ng5 cxd4 14. Nxe4 c5 15. Qxd7+ Kxd7 16. Bf4 Rb8 17. O-O-O Rb6 18. Rd3 f5 19. gxf5 exf5 20. Nc3 {Wieczorek,Z (2105)-Winkels,M (1885) chess.com INT 2025 1-0}) 6. Nxe5 {[%emt 0:00:02]} Qd5 {[%emt 0:00:01]} ({RR} 6... f6 7. Qh5+ g6 8. Nxg6 hxg6 9. Qxh8 Qd5 10. O-O Kf7 11. Nc3 Qd4 12. d3 Bg7 13. Qh7 f5 14. Ne2 Qd6 15. Nf4 Bd7 16. Nh3 Be8 17. Ng5+ Kf8 18. Re1 e5 19. Bf4 Bf6 ({RR} 19... exf4 20. Ne6+) ({RR} 19... Rb8 20. Qxg7+) 20. Qb7 Bxg5 21. Bxe5 {Caruana,F (2787)-Nakamura,H (2793) Saint Louis 2015 CBM 169 Extra [Ramirez Alvarez,Alejandro] 1-0}) 7. Nf3 {[%emt 0:00:01]} Qe6+ {[%emt 0:00:04]} ({RR} 7... Bg4 8. Nc3 Bxf3 9. Qxf3 Qxf3 10. gxf3 Nh6 11. Na4 Nf5 12. c3 e6 13. d3 O-O-O 14. Ke2 h5 15. Be3 Rd5 16. f4 Be7 17. a3 g5 18. fxg5 Nxe3 19. fxe3 Rxg5 20. Raf1 f5 21. b4 cxb4 22. axb4 {Aronian,L (2785)-Xiong,J (2685) Chess.com INT 2022 ½-½ (34)}) 8. Kf1 $146 {[%emt 0:00:22]} ({RR} 8. Qe2 Qxe2+ 9. Kxe2 Ba6+ 10. Ke1 f6 11. d3 e5 12. b3 Ne7 13. Nc3 Nd5 14. Ne4 Nb4 15. Kd1 O-O-O 16. Nfd2 Be7 17. a3 Nd5 18. Bb2 g6 19. h4 h6 20. Nc4 Bxc4 21. bxc4 Nb6 22. Ke2 Na4 {Grant,D (2103)-Varnam,L (2046) Vrnjacka Banja SRB 2024 1-0 (53)}) ({RR} 8. Qe2 Qxe2+ 9. Kxe2 Ba6+ 10. d3 c4 11. Rd1 cxd3+ 12. cxd3 f6 13. b3 e5 14. Ba3 Ne7 15. Bxe7 Bxe7 16. Nbd2 Kf7 17. Rac1 Rhd8 18. Nc4 Rd5 19. Ne1 Rad8 20. f3 Ke6 21. Ne3 R5d6 22. Nc4 R6d7 {Segerberg,T (2075)-Gohil,H (2322) Dresden 2016 ½-½ (80)}) ({RR} 8. Qe2 Qxe2+ 9. Kxe2 Ba6+ 10. Ke1 f6 11. d3 e5 12. b3 Ne7 13. Nc3 Nd5 14. Ne4 Nb4 15. Kd1 O-O-O 16. Nfd2 Be7 17. a3 Nd5 18. Bb2 g6 19. h4 h6 20. Nc4 Bxc4 21. bxc4 Nb6 22. Ke2 Na4 {Grant,D (2103)-Varnam,L (2046) Vrnjacka Banja SRB 2024 1-0 (53)}) 8... c4 {[%emt 0:00:09]} 9. b3 {[%emt 0:00:27]} Nf6 {[%emt 0:00:14]} 10. Nc3 {[%emt 0:00:14]} g6 {[%emt 0:00:11]} 11. Bb2 {[%emt 0:00:46]} Bg7 {[%emt 0:00:38]} 12. Qe2 {[%emt 0:00:40]} O-O {[%emt 0:00:33]} 13. Qxe6 {[%emt 0:00:51]} Bxe6 {[%emt 0:00:01]} 14. Nd4 {[%emt 0:00:01]} Bd5 {[%emt 0:00:40]} 15. Re1 {[%emt 0:00:05]} Rfe8 {[%emt 0:00:15]} 16. bxc4 {[%emt 0:00:33]} Bxc4+ {[%emt 0:00:01]} 17. d3 {[%emt 0:00:01]} Bd5 {[%emt 0:00:10]} 18. Nb3 {[%emt 0:00:01]} Nd7 {[%emt 0:00:26]} 19. Na4 {[%emt 0:00:14]} Bxb2 {[%emt 0:00:07]} 20. Nxb2 {[%emt 0:00:02]} c5 {[%emt 0:00:02]} 21. f3 {[%emt 0:00:11]} Rac8 {[%emt 0:00:05]} 22. c4 {[%emt 0:00:12]} Bc6 {[%emt 0:00:01]} 23. Kf2 {[%emt 0:00:08]} f6 {[%emt 0:00:29]} 24. Re2 {[%emt 0:00:02]} Kf7 {[%emt 0:00:01]} 25. Rc1 {[%emt 0:00:06]} Ba8 {[%emt 0:00:13]} 26. Na5 {[%emt 0:00:13]} e5 {[%emt 0:00:14]} 27. Nd1 {[%emt 0:00:11]} Nf8 {[%emt 0:00:02]} 28. Ne3 {[%emt 0:00:17]} Red8 {[%emt 0:00:06]} 29. Rc3 {[%emt 0:00:01]} Ne6 {[%emt 0:00:02]} 30. Rd2 {[%emt 0:00:03]} Rc7 {[%emt 0:00:01]} 31. Ra3 {[%emt 0:00:01]} Rcd7 {[%emt 0:00:10]} 32. Nb3 {[%emt 0:00:01]} Nf4 {[%emt 0:00:35]} 33. Nxc5 {[%emt 0:00:04]} Rc7 {[%emt 0:00:01]} 34. Na4 {[%emt 0:00:03]} f5 {[%emt 0:00:14]} 35. Nb2 {[%emt 0:00:02]} Ne6 {[%emt 0:00:02]} 36. Ra5 {[%emt 0:00:02]} Kf6 {[%emt 0:00:03]} 37. Na4 {[%emt 0:00:01]} e4 {[%emt 0:00:04]} 38. fxe4 {[%emt 0:00:02]} fxe4 {[%emt 0:00:01]} 39. Nc3 {[%emt 0:00:00]} exd3 {[%emt 0:00:02]} 40. Ncd5+ {[%emt 0:00:01]} Bxd5 {[%emt 0:00:01]} 41. Nxd5+ {[%emt 0:00:00]} Rxd5 {[%emt 0:00:03]} 42. cxd5 {[%emt 0:00:01]} Rc2 {[%emt 0:00:08]} 43. Ke3 {[%emt 0:00:03]} Nf4 {[%emt 0:00:01]} 44. Rxc2 {[%emt 0:00:03]} dxc2 {[%emt 0:00:01]} 45. Kd2 Ke5 {[%emt 0:00:05]} 46. Rxa7 {[%emt 0:00:03]} 1-0

[Event "GCT Superbet Blitz Poland 2025"]
[Site "Warsaw"]
[Date "2025.04.28"]
[Round "1"]
[White "Vachier-Lagrave, Maxime"]
[Black "Fedoseev, Vladimir"]
[Result "0-1"]
[ECO "C42"]
[WhiteElo "2722"]
[BlackElo "2739"]
[Annotator "RC"]
[PlyCount "106"]
[EventDate "2025.??.??"]
[EventType "blitz"]
[TimeControl "300+2"]

1. e4 {[%emt 0:00:01]} e5 {[%emt 0:00:01]} 2. Nf3 {[%emt 0:00:01]} Nf6 {[%emt 0:00:00]} 3. Nxe5 {[%emt 0:00:08]} d6 {[%emt 0:00:02]} 4. Nf3 {[%emt 0:00:01]} Nxe4 {[%emt 0:00:01]} 5. Nc3 {[%emt 0:00:01]} Nf6 {[%emt 0:00:01]} 6. d4 {[%emt 0:00:02]} Be7 {[%emt 0:00:01]} 7. Bd3 {[%emt 0:00:11]} O-O {[%emt 0:00:02]} 8. O-O {[%emt 0:00:02]} Bg4 {[%emt 0:00:01]} 9. h3 {[%emt 0:00:06]} Bh5 {[%emt 0:00:02]} 10. Re1 {[%emt 0:00:08]} Nc6 {[%emt 0:00:01]} ({RR} 10... Re8 11. g4 Bg6 12. Bxg6 hxg6 13. d5 c6 14. Bf4 Nbd7 15. dxc6 bxc6 16. Bxd6 Bxd6 17. Qxd6 Ne5 18. Qxe5 Rxe5 19. Rxe5 Qb6 20. b3 Nd7 21. Re3 Nf8 22. Rd1 Rd8 23. Rde1 Ne6 24. Ne4 Qa5 25. a4 {Giri,A (2764)-Artemiev,V (2708) Chess.com INT 2020 ½-½ (60)}) 11. g4 {[%emt 0:00:17]} ({RR} 11. Be2 Re8 12. d5 Nb8 13. Bg5 Nbd7 14. Nd4 Bxe2 15. Qxe2 h6 16. Bh4 Ne5 17. Nf5 Ng6 18. Nxe7+ Rxe7 19. Bxf6 Rxe2 20. Bxd8 Rxe1+ 21. Rxe1 Rxd8 22. Nb5 a6 23. Nxc7 Kf8 24. Re3 Ne5 25. b4 g5 {Smieszek,W (2457)-Kacharava,N (2651) Chess.com 2024 0-1 (46)}) 11... Bg6 {[%emt 0:00:01]} 12. g5 $146 {[%emt 0:00:42]} ({RR} 12. Bxg6 hxg6 13. d5 Nb8 14. Bf4 Nbd7 15. Qd2 Re8 16. Re2 Bf8 17. Rxe8 Qxe8 18. Re1 Qd8 19. Ng5 Nb6 20. Nge4 Nxe4 21. Nxe4 Qd7 22. b3 Re8 23. c4 Qc8 24. Re3 Nd7 25. Qe2 Ne5 26. Bg3 a6 {Sjugirov,S (2703)-Radjabov,T (2723) Samarkand UZB 2023 ½-½ (58)}) ({RR} 12. Bxg6 hxg6 13. d5 Nb8 14. Bf4 Nbd7 15. Qd2 Re8 16. Re2 Bf8 17. Rxe8 Qxe8 18. Re1 Qd8 19. Ng5 Nb6 20. Nge4 Nxe4 21. Nxe4 Qd7 22. b3 Re8 23. c4 Qc8 24. Re3 Nd7 25. Qe2 Ne5 26. Bg3 a6 {Sjugirov,S (2703)-Radjabov,T (2723) Samarkand UZB 2023 ½-½ (58)}) ({RR} 12. Bxg6 hxg6 13. d5 Nb8 14. Bf4 Nbd7 15. Qd2 Re8 16. Re2 Bf8 17. Rxe8 Qxe8 18. Re1 Qd8 19. Ng5 Nb6 20. Nge4 Nxe4 21. Nxe4 Qd7 22. b3 Re8 23. c4 Qc8 24. Re3 Nd7 25. Qe2 Ne5 26. Bg3 a6 {Sjugirov,S (2703)-Radjabov,T (2723) Samarkand UZB 2023 ½-½ (58)}) 12... Nd7 {[%emt 0:00:15]} 13. Nd5 {[%emt 0:00:46]} Nb6 {[%emt 0:00:38]} 14. Nxe7+ {[%emt 0:00:44]} Nxe7 {[%emt 0:00:02]} 15. Nh4 {[%emt 0:00:07]} Bxd3 {[%emt 0:00:40]} 16. Qxd3 {[%emt 0:00:01]} Qd7 {[%emt 0:00:06]} 17. c4 {[%emt 0:00:15]} Rae8 {[%emt 0:00:01]} 18. Bd2 {[%emt 0:00:27]} f6 {[%emt 0:00:42]} 19. b3 {[%emt 0:00:11]} fxg5 {[%emt 0:00:20]} 20. Bxg5 {[%emt 0:00:01]} Nc6 {[%emt 0:00:22]} 21. Ng2 {[%emt 0:00:20]} Qf7 {[%emt 0:00:08]} 22. Bf4 {[%emt 0:00:17]} Nd7 {[%emt 0:00:05]} 23. a3 {[%emt 0:00:11]} Nf6 {[%emt 0:00:18]} 24. d5 {[%emt 0:00:04]} Ne5 {[%emt 0:00:23]} 25. Bxe5 {[%emt 0:00:01]} dxe5 {[%emt 0:00:01]} 26. Re2 {[%emt 0:00:06]} b6 {[%emt 0:00:06]} 27. Rae1 {[%emt 0:00:03]} e4 {[%emt 0:00:01]} 28. Qd4 {[%emt 0:00:06]} Qd7 {[%emt 0:00:05]} 29. Qc3 {[%emt 0:00:07]} Qf5 {[%emt 0:00:05]} 30. Qg3 {[%emt 0:00:09]} Rf7 {[%emt 0:00:12]} 31. f3 {[%emt 0:00:13]} Nh5 {[%emt 0:00:32]} 32. Qg4 {[%emt 0:00:02]} Qxf3 {[%emt 0:00:01]} 33. Rxe4 {[%emt 0:00:01]} Rxe4 {[%emt 0:00:31]} 34. Rxe4 {[%emt 0:00:00]} Qxg4 {[%emt 0:00:04]} 35. Re8+ {[%emt 0:00:13]} Rf8 {[%emt 0:00:01]} 36. Rxf8+ {[%emt 0:00:01]} Kxf8 {[%emt 0:00:01]} 37. hxg4 {[%emt 0:00:02]} Nf6 {[%emt 0:00:02]} 38. Ne3 {[%emt 0:00:00]} Ne4 {[%emt 0:00:05]} 39. Kg2 {[%emt 0:00:02]} Ke7 {[%emt 0:00:02]} 40. b4 {[%emt 0:00:01]} Kf6 {[%emt 0:00:00]} 41. Kf3 {[%emt 0:00:08]} Ke5 {[%emt 0:00:01]} 42. Ke2 {[%emt 0:00:03]} Kd4 {[%emt 0:00:04]} 43. Nf5+ {[%emt 0:00:03]} Kxc4 {[%emt 0:00:01]} 44. Nxg7 {[%emt 0:00:00]} Kxd5 {[%emt 0:00:08]} 45. Ne8 {[%emt 0:00:02]} c5 {[%emt 0:00:05]} 46. bxc5 {[%emt 0:00:00]} bxc5 {[%emt 0:00:02]} 47. Ke3 {[%emt 0:00:03]} Ke5 {[%emt 0:00:00]} 48. Nc7 {[%emt 0:00:02]} Nf6 {[%emt 0:00:02]} 49. Nb5 {[%emt 0:00:03]} a6 {[%emt 0:00:01]} 50. Na7 {[%emt 0:00:01]} Nxg4+ {[%emt 0:00:02]} 51. Kf3 {[%emt 0:00:01]} Nf6 {[%emt 0:00:02]} 52. Nc6+ {[%emt 0:00:00]} Kd5 {[%emt 0:00:02]} 53. Na5 {[%emt 0:00:01]} c4 {[%emt 0:00:02]} 0-1

[Event "GCT Superbet Blitz Poland 2025"]
[Site "Warsaw"]
[Date "2025.04.28"]
[Round "1"]
[White "Deac, Bogdan-Daniel"]
[Black "Praggnanandhaa R"]
[Result "1-0"]
[ECO "E11"]
[WhiteElo "2668"]
[BlackElo "2758"]
[Annotator "TA"]
[PlyCount "107"]
[EventDate "2025.??.??"]
[EventType "blitz"]
[TimeControl "300+2"]

{[%evp 11,107,27,52,23,60,52,50,31,55,19,16,8,17,0,14,0,69,25,24,20,28,19,33,12,37,6,4,11,11,4,11,6,11,8,19,0,0,0,0,-4,0,0,10,0,0,-19,0,-6,-11,-25,-28,-46,-23,-23,-20,-21,-28,-20,-20,-22,0,0,257,243,340,340,351,321,457,457,475,468,564,564,545,544,733,727,727,725,704,704,696,692,1663,1576,2039,1619,29943,5712,29969,29970,29972,29974,29975,29976,29970,29972]} 1. d4 {[%emt 0:00:02]} Nf6 {[%emt 0:00:01]} 2. Nf3 {[%emt 0:00:02]} e6 {[%emt 0:00:06]} 3. c4 {[%emt 0:00:05]} Bb4+ {[%emt 0:00:02]} 4. Nbd2 {[%emt 0:00:03]} O-O {[%emt 0:00:04]} 5. g3 {[%emt 0:00:02]} d6 {[%emt 0:00:13]} 6. Bg2 {[%emt 0:00:12]} Qe7 {[%emt 0:00:02]} 7. O-O {[%emt 0:00:10] E11: Bogo-Indian.} Bxd2 {[%emt 0:00:03]} 8. Qxd2 {[%emt 0:01:09]} ({RR} 8. Bxd2 e5 9. Rc1 Re8 10. Qa4 Nbd7 11. Qa3 Ne4 12. Be3 exd4 13. Bxd4 Ndf6 14. b3 Bd7 15. Rfd1 a6 16. Qb2 Rad8 17. Rd3 c5 18. Bxf6 Nxf6 19. Rcd1 Bf5 20. Re3 Qc7 21. Rxe8+ Rxe8 22. Nh4 Be6 {Gupta,A (2603)-Demidov,M (2552) Chess.com INT 2020 ½-½ (91)}) 8... e5 {[%emt 0:00:01]} 9. dxe5 {[%emt 0:00:16] White is slightly better.} ({RR} 9. d5 Nbd7 10. Ne1 a5 11. e4 Nc5 12. f3 c6 13. Nd3 Nxd3 14. Qxd3 cxd5 15. exd5 Nd7 16. Be3 f5 17. b3 f4 18. gxf4 exf4 19. Bd4 Ne5 20. Qc3 Ng6 21. Rae1 Qg5 22. Kh1 Bf5 23. Rg1 Rf7 {Barria Zuniga,D (2341)-Masruri,R (2327) chess.com INT 2025 0-1 (32)}) 9... dxe5 {[%emt 0:00:02]} 10. Qc3 $146 {[%emt 0:00:11]} ({RR} 10. b4 Nc6 11. b5 Rd8 12. Qe3 Ng4 13. Qb3 Nd4 14. Nxd4 exd4 15. Ba3 Qf6 16. h3 Ne5 17. f4 Nd7 18. c5 a6 19. c6 bxc6 20. bxc6 Nb6 21. Rad1 Be6 22. Qc2 Nd5 23. Bxd5 Bxd5 24. Bb2 Bxc6 {Dev,S (2248)-Milanovic,S (2296) Pozarevac 2022 ½-½}) ({RR} 10. b3 Nc6 11. Bb2 Rd8 12. Qc3 Ne4 13. Qc2 Ng5 14. Rad1 Nxf3+ 15. Bxf3 Bh3 16. Rfe1 h6 17. a3 Rab8 18. b4 Nd4 19. Bxd4 exd4 20. c5 b6 21. c6 a5 22. Qb2 axb4 23. axb4 Qf6 24. Rd2 Rd6 {Vasilevich,T (2360)-Vasilevich,I (2258) Sochi 2018 1-0 (50)}) ({RR} 10. b4 Rd8 11. Qc3 Nc6 12. b5 Nd4 13. Nxd4 exd4 14. Qd3 Bg4 15. Re1 c5 16. bxc6 bxc6 17. Bb2 Qe8 18. h3 Bh5 19. Bxd4 c5 20. Bxf6 Rxd3 21. exd3 Qc8 22. Bxa8 Qxa8 23. Re5 Be2 24. Rxe2 gxf6 {Deac,B (2625)-Stoleriu,G (2349) Iasi 2021 1-0 (41)}) 10... Nc6 {[%emt 0:00:06]} 11. Rd1 $5 {[%emt 0:00:18][%mdl 4] A promising side line.} h6 {[%emt 0:00:26]} 12. Be3 {[%emt 0:00:38][%cal Ob2b4]} Re8 {[%emt 0:00:44]} 13. Nd2 {[%emt 0:00:15][%cal Bf3d2,Bd2b3,Bb3d4][%mdl 32]} e4 $146 {[%emt 0:00:31]} (13... Ng4 $11) (13... Nd4 14. Bxd4 exd4 15. Qxd4 Qxe2 16. Nf1 c6 17. Ne3 Qh5 18. Re1 Be6 19. b3 Red8 {0-1 Timoscenko,G (2513)-Epishin,V (2599) Valle d'Aosta op 10th 2002 (6)}) 14. Nb3 {[%emt 0:00:26] White is more active.} Bg4 {[%emt 0:00:31]} 15. Rd2 {[%emt 0:00:18]} Rad8 {[%emt 0:00:01]} 16. Nd4 {[%emt 0:00:13]} Ne5 {[%emt 0:00:51][%cal Bc6e5,Be5g4,Bg4e3][%mdl 32]} 17. Re1 {[%emt 0:00:14]} Bc8 {[%emt 0:00:22]} 18. Red1 {[%emt 0:00:40]} Neg4 {[%emt 0:00:37]} 19. Nc2 {[%emt 0:00:05]} Nxe3 {[%emt 0:00:28]} 20. Nxe3 {[%emt 0:00:01]} Be6 {[%emt 0:00:03]} 21. Qc2 {[%emt 0:00:16]} Rxd2 {[%emt 0:00:12]} 22. Rxd2 {[%emt 0:00:00]} Qb4 {[%emt 0:00:08]} 23. a3 {[%emt 0:00:04]} Qa5 {[%emt 0:00:01]} 24. Rd1 {[%emt 0:00:05]} Qe5 {[%emt 0:00:01]} 25. h3 {[%emt 0:00:03]} h5 {[%emt 0:00:07]} 26. Qb3 {[%emt 0:00:01]} Rb8 {[%emt 0:00:06]} 27. Qc2 {[%emt 0:00:02]} g6 {[%emt 0:00:02]} 28. b4 {[%emt 0:00:01]} a5 {[%emt 0:00:02]} 29. Qd2 {[%emt 0:00:03]} axb4 {[%emt 0:00:01]} 30. axb4 {[%emt 0:00:01]} Ra8 {[%emt 0:00:01]} 31. b5 {[%emt 0:00:02]} Kg7 {[%emt 0:00:03]} 32. Qd4 {[%emt 0:00:03]} Qxd4 {[%emt 0:00:02]} 33. Rxd4 {[%emt 0:00:01]} Ra1+ {[%emt 0:00:02]} 34. Kh2 {[%emt 0:00:01]} Ra2 {[%emt 0:00:01]} 35. Bxe4 {[%emt 0:00:03]} Nxe4 {[%emt 0:00:01]} 36. Rxe4 {[%emt 0:00:01]} Rxe2 $2 {[%emt 0:00:01][%mdl 8192] [#] White now steadily converts the win.} (36... c6 $11 {and Black has nothing to worry.}) 37. Nf5+ $1 $18 {[%emt 0:00:00][%mdl 512]} gxf5 {[%emt 0:00:03]} (37... Bxf5 38. Rxe2) 38. Rxe2 {[%emt 0:00:01]} Bxc4 {[%emt 0:00:01][%mdl 4096] Endgame KR-KB} 39. Re5 {[%emt 0:00:05]} Bd3 {[%emt 0:00:08]} (39... c6 {was called for.} 40. b6 (40. Rxf5 cxb5 41. Rxh5 b4 $18) 40... Kf6) 40. Rc5 {[%emt 0:00:02]} Kg6 {[%emt 0:00:02]} 41. Rxc7 {[%emt 0:00:01]} Bxb5 {[%emt 0:00:01]} 42. Rxb7 {[%emt 0:00:01]} Bd3 {[%emt 0:00:01]} 43. Rb6+ {[%emt 0:00:03]} f6 {[%emt 0:00:04]} 44. Rb4 {[%emt 0:00:03]} Be4 {[%emt 0:00:01]} 45. h4 {[%emt 0:00:03]} Kf7 {[%emt 0:00:02]} 46. Kg1 {[%emt 0:00:02]} Ke6 {[%emt 0:00:01]} 47. Kf1 {[%emt 0:00:02]} Ke5 {[%emt 0:00:03]} 48. Ke2 {[%emt 0:00:02]} f4 {[%emt 0:00:02]} 49. Rb5+ {[%emt 0:00:01]} Bd5 {[%emt 0:00:03]} 50. gxf4+ {[%emt 0:00:02]} (50. g4 $142 Ke6 51. Rb6+ (51. gxh5 $2 Bc4+ 52. Kf3 Bxb5 $19) 51... Kf7 52. gxh5 Bg2 53. h6 Kg6 54. h7 Kxh7 55. Rxf6) 50... Kd4 {[%emt 0:00:01]} 51. Ra5 {[%emt 0:00:03] White mates.} Be6 {[%emt 0:00:03]} 52. f3 {[%emt 0:00:03]} (52. Rxh5 $2 {is the wrong capture.} Bg4+ 53. Kd2 Bxh5 $19) 52... Bd5 {[%emt 0:00:01]} 53. Kf2 {[%emt 0:00:03]} Bf7 {[%emt 0:00:04]} 54. Rf5 {[%emt 0:00:02] Weighted Error Value: White=0.16 (very precise) /Black=0.69 Loses game: 	--- 	Black=1 Mistake: 	--- 	Black=2 Inaccurate: 	White=3 	Black=3 OK: 	White=15 	Black=12 Best: 	White=2 	--- Brilliant: 	White=1 	---} 1-0